bitfinex/quotes_ETHUSD_20250720
["timestamp","ask_amount","ask_price","bid_price","bid_amount"]
[1753027643221,4.496,3778.3,3778.2,0.132]
[1753027643657,4.496,3778.3,3777.7,3.0]
[1753027643854,0.132,3778.7,3778.0,0.132]
[1753027644027,4.494,3778.6,3778.0,0.132]
[1753027644238,4.493,3778.5,3778.4,2.64656049]
[1753027644433,0.132,3779.0,3778.5,2.64650502]
[1753027644634,0.132,3779.0,3778.3,2.77867336]
[1753027644635,4.492,3778.8,3778.4,3.11471152]
[1753027644954,4.492,3778.8,3778.3,2.77867256]
[1753027645149,4.492,3778.8,3778.4,2.64659009]
[1753027645360,0.9854,3779.9,3779.3,2.64592641]
[1753027645543,4.623,3779.8,3778.7,0.132]
[1753027645866,4.623,3779.8,3779.2,0.132]
[1753027646372,4.623,3779.8,3779.3,2.64599201]
[1753027646588,4.489,3779.7,3779.2,0.132]
[1753027647094,0.132,3780.1,3779.6,2.64573049]
[1753027647386,4.484,3780.0,3779.5,2.64585262]
[1753027647587,0.9989,3780.4,3779.7,2.64567528]
[1753027647793,0.9989,3780.4,3779.9,2.64557263]
[1753027647794,1.49116578,3780.4,3779.9,2.64557263]
[1753027647965,4.482,3780.3,3779.8,0.132]
[1753027648291,0.002,3780.5,3780.3,2.64524432]
[1753027648466,4.483,3780.5,3780.3,2.64524432]
[1753027648668,0.002,3780.5,3780.2,0.132]
[1753027648869,0.002,3780.5,3780.2,2.77734293]
[1753027649066,0.002,3780.5,3780.3,2.64529229]
[1753027649266,0.002,3780.5,3780.2,0.132]
[1753027650403,0.002,3780.5,3780.4,0.132]
[1753027650893,0.002,3780.5,3779.4,0.9281]
[1753027650894,0.9744,3780.4,3779.4,0.9281]
[1753027651090,2.77741066,3780.2,3779.6,0.132]
[1753027651302,4.471,3780.1,3779.6,0.132]
[1753027651466,0.82974745,3780.5,3780.2,2.64533685]
[1753027651467,0.002,3780.5,3780.2,2.64533685]
[1753027651788,0.002,3780.5,3779.8,3.0]
[1753027651963,0.002,3780.5,3780.4,2.64522272]
[1753027653097,0.002,3780.5,3780.4,6.67887494]
[1753027653273,0.002,3780.5,3780.4,7.12032272]
[1753027653858,0.002,3780.5,3780.4,3.0]
[1753027654260,0.002,3780.5,3779.9,1.0072]
[1753027654583,0.002,3780.5,3780.1,3.0]
[1753027654760,0.002,3780.5,3780.4,2.64522272]
[1753027655792,0.002,3780.5,3780.4,2.67167494]
[1753027655957,0.002,3780.5,3780.4,2.64522272]
[1753027656374,0.002,3780.5,3780.1,3.0]
[1753027656577,3.08872844,3780.4,3779.7,3.0]
[1753027656783,2.95436915,3780.3,3779.2,0.9384]
[1753027657095,2.95436915,3780.3,3779.6,2.6457758]
[1753027657096,4.455,3780.2,3779.6,2.6457758]
[1753027657295,4.455,3780.2,3779.4,2.64592131]
[1753027657530,4.455,3780.2,3779.7,3.0]
[1753027657814,2.64550264,3780.0,3779.2,0.9384]
[1753027657965,3.43081019,3780.0,3779.1,2.64608124]
[1753027658165,3.43081019,3780.0,3779.3,3.0]
[1753027658397,0.78530755,3780.0,3778.7,0.9384]
[1753027658694,3.61859373,3779.9,3779.1,2.64612768]
[1753027658894,2.64571786,3779.7,3778.8,2.64634275]
[1753027659107,4.448,3779.6,3778.7,3.58481102]
[1753027659400,4.448,3779.6,3779.0,3.0]
[1753027659575,4.446,3779.5,3778.7,0.9384]
[1753027659990,7.09187538,3779.5,3778.5,2.64652898]
[1753027660186,3.08927385,3779.7,3778.2,1.009]
[1753027660187,0.4435,3779.7,3778.2,1.009]
[1753027660415,4.444,3779.8,3778.3,1.06019]
[1753027660588,4.444,3779.8,3779.0,2.64615785]
[1753027660914,4.444,3779.8,3779.3,2.6459785]
[1753027661410,2.64552707,3780.0,3779.1,3.0]
[1753027661626,0.132,3780.1,3779.4,0.132]
[1753027661814,4.442,3779.9,3779.4,0.132]
[1753027662195,4.44,3779.8,3779.4,0.132]
[1753027662513,3.19969208,3780.1,3779.4,0.132]
[1753027662677,4.439,3780.0,3779.4,0.132]
[1753027663078,7.08450327,3780.0,3779.4,0.132]
[1753027663380,1.0727641,3779.9,3779.4,0.132]
[1753027663609,3.08914262,3779.8,3779.4,0.132]
[1753027663788,3.08921923,3779.7,3779.4,0.132]
[1753027663988,0.4435,3779.6,3779.4,0.132]
[1753027665118,3.08933466,3779.6,3779.4,0.132]
[1753027665315,3.08935262,3779.5,3778.2,1.009]
[1753027665546,0.132,3779.2,3778.6,0.133]
[1753027666413,0.132,3778.9,3778.6,0.001]
[1753027666614,4.425,3778.8,3778.6,0.001]
[1753027667633,4.8685,3778.8,3778.6,0.001]
[1753027667843,5.36855,3778.8,3778.6,0.001]
[1753027668145,4.8685,3778.8,3778.6,0.001]
[1753027669044,4.425,3778.8,3778.6,0.001]
[1753027669437,0.132,3778.9,3778.6,0.001]
[1753027669628,4.415,3778.7,3778.6,0.001]
[1753027670950,0.132,3778.9,3778.6,0.001]
[1753027671174,4.415,3778.8,3778.6,3.001]
[1753027671452,4.409,3778.9,3778.6,0.133]
[1753027671893,7.05532797,3778.9,3778.6,0.133]
[1753027672030,8.2043065,3778.9,3778.6,0.133]
[1753027672232,0.4435,3778.8,3778.6,0.001]
[1753027672877,4.406,3778.7,3778.6,0.001]
[1753027673376,7.05241278,3778.7,3778.6,0.001]
[1753027673701,4.8495,3778.7,3778.6,0.001]
[1753027673832,7.49591278,3778.7,3778.6,0.001]
[1753027674038,4.8495,3778.7,3778.6,0.001]
[1753027674338,0.7055328,3778.9,3778.6,0.001]
[1753027674658,4.403,3778.7,3778.6,0.001]
[1753027674831,4.399,3778.7,3778.6,0.001]
[1753027677145,0.4435,3778.7,3778.6,0.001]
[1753027677364,4.8425,3778.7,3778.6,0.001]
[1753027677755,4.399,3778.7,3778.6,0.001]
[1753027678446,0.132,3779.0,3778.6,0.001]
[1753027678650,4.399,3778.9,3778.6,0.001]
[1753027678849,0.132,3779.3,3778.6,0.133]
[1753027679073,4.399,3779.2,3778.7,2.6463676]
[1753027679255,4.399,3779.1,3778.8,3.11272975]
[1753027679456,0.132,3779.3,3778.9,2.64624558]
[1753027679659,4.399,3779.2,3778.9,2.64624558]
[1753027679862,4.399,3779.2,3778.8,0.4664]
[1753027680069,4.399,3779.2,3778.9,2.64626]
[1753027680241,0.132,3779.3,3778.6,3.133]
[1753027680446,0.132,3779.3,3778.7,2.64636433]
[1753027680749,0.132,3779.3,3778.6,2.77947483]
[1753027680967,4.399,3779.2,3778.8,0.132]
[1753027681177,2.64627272,3778.9,3778.8,0.132]
[1753027681485,7.47555756,3779.1,3778.6,0.133]
[1753027681852,3.68034343,3779.7,3778.6,0.133]
[1753027681853,0.002,3780.2,3779.8,2.64560883]
[1753027682051,0.002,3780.2,3779.9,2.64556754]
[1753027682270,0.002,3780.2,3780.1,2.64543266]
[1753027682764,0.002,3780.2,3779.8,0.9613]
[1753027682938,0.002,3780.2,3780.0,2.64547378]
[1753027683144,0.002,3780.2,3779.8,0.9613]
[1753027683356,0.002,3780.2,3779.7,3.0]
[1753027683540,0.002,3780.2,3780.1,2.64543266]
[1753027684192,0.002,3780.2,3779.8,2.6455872]
[1753027684367,0.002,3780.2,3780.0,2.64547853]
[1753027684565,0.002,3780.2,3780.1,2.64543266]
[1753027685074,0.002,3780.2,3780.1,3.11183266]
[1753027685255,0.002,3780.2,3779.9,2.64556306]
[1753027685452,0.002,3780.2,3779.5,3.4664]
[1753027685670,0.002,3780.2,3779.9,2.64555285]
[1753027686680,0.002,3780.2,3779.8,2.64563217]
[1753027686880,0.002,3780.2,3779.7,2.64569111]
[1753027687080,0.002,3780.2,3779.8,2.64563039]
[1753027687286,0.002,3780.2,3779.3,0.9613]
[1753027687591,0.002,3780.2,3779.4,0.44277]
[1753027687795,0.002,3780.2,3779.8,3.0]
[1753027688091,0.002,3780.2,3779.3,0.9613]
[1753027688296,2.64543266,3780.1,3779.3,3.60728049]
[1753027688495,0.4304,3780.0,3778.9,0.986]
[1753027688700,2.6458326,3779.6,3778.8,2.64633566]
[1753027688992,4.398,3779.5,3778.9,2.64622833]
[1753027689172,4.398,3779.5,3778.7,5.64640205]
[1753027689373,4.398,3779.5,3778.6,0.4674]
[1753027689687,0.4304,3779.8,3778.6,3.113839]
[1753027689878,4.398,3779.7,3778.8,2.64630438]
[1753027690196,0.747409,3779.6,3778.8,2.64630438]
[1753027690433,4.398,3779.7,3779.3,3.0]
[1753027690602,4.398,3779.7,3779.1,2.64610853]
[1753027690765,4.398,3779.7,3779.3,0.4664]
[1753027691093,4.398,3779.7,3778.7,2.64636607]
[1753027691297,4.398,3779.7,3778.9,3.0]
[1753027691500,4.398,3779.6,3779.2,3.0]
[1753027691905,4.398,3779.5,3779.4,0.132]
[1753027692712,4.398,3779.5,3779.4,2.77792263]
[1753027692905,4.398,3779.5,3779.4,0.132]
[1753027693107,2.64557391,3779.9,3779.4,0.132]
[1753027693309,4.398,3779.8,3779.4,0.132]
[1753027694077,4.398,3779.8,3779.4,2.77792124]
[1753027694299,4.398,3779.8,3779.4,0.132]
[1753027694613,4.8284,3779.8,3779.4,0.132]
[1753027695012,2.64571262,3779.7,3779.4,0.132]
[1753027695217,3.07611262,3779.7,3779.4,0.132]
[1753027695403,3.07623821,3779.6,3778.7,3.0]
[1753027695607,0.4304,3779.6,3779.1,0.132]
[1753027696096,0.90812464,3779.7,3779.1,0.132]
[1753027696336,4.397,3779.5,3779.4,0.132]
[1753027697174,2.6455862,3779.9,3779.4,0.132]
[1753027697404,4.397,3779.8,3779.4,0.132]
[1753027698109,4.397,3779.7,3779.4,0.132]
[1753027698675,0.4304,3779.6,3778.6,0.001]
[1753027698879,0.4304,3779.6,3779.1,0.132]
[1753027699082,4.397,3779.5,3779.1,0.132]
[1753027699305,4.8274,3779.5,3779.1,0.132]
[1753027699500,0.4304,3779.4,3779.1,0.132]
[1753027700421,0.4304,3779.3,3779.1,0.132]
[1753027700638,0.4304,3779.3,3778.8,0.132]
[1753027700915,0.4304,3779.2,3778.8,0.132]
[1753027701155,1.4738,3779.4,3778.6,0.001]
[1753027701285,4.397,3779.1,3778.7,2.77841278]
[1753027701483,1.0341,3779.4,3778.9,2.64622823]
[1753027701785,4.397,3779.3,3779.1,2.64608647]
[1753027702004,4.397,3779.3,3778.9,0.9646]
[1753027702197,4.397,3779.3,3779.2,0.132]
[1753027703198,5.3991,3779.3,3778.6,0.133]
[1753027703617,5.3991,3779.3,3778.6,2.77946746]
[1753027703818,2.64576736,3779.7,3778.6,0.133]
[1753027704134,0.132,3779.6,3778.9,0.132]
[1753027704339,4.528,3779.6,3778.9,2.7782576]
[1753027704541,4.396,3779.5,3779.1,2.64611315]
[1753027705014,4.396,3779.4,3778.8,0.4664]
[1753027705197,4.396,3779.4,3779.3,0.132]
[1753027707621,2.77799264,3779.3,3778.6,3.133]
[1753027708514,0.132,3779.3,3778.6,2.77947528]
[1753027708689,0.132,3779.3,3778.7,2.6464056]
[1753027708890,4.527,3779.3,3778.7,2.64641278]
[1753027709388,7.17299617,3779.3,3778.6,2.7794596]
[1753027709584,4.527,3779.3,3778.6,2.7794596]
[1753027710000,4.527,3779.3,3778.7,2.64640266]
[1753027710497,4.527,3779.3,3778.6,2.77945945]
[1753027710718,5.39171565,3779.3,3778.6,2.77945945]
[1753027711028,8.0377125,3779.3,3778.6,2.77945945]
[1753027711534,5.39171565,3779.3,3778.6,0.133]
[1753027711722,4.395,3779.2,3778.7,0.02646412]
[1753027712042,0.002,3779.6,3779.5,2.64585262]
[1753027712190,0.002,3779.6,3779.5,3.23795262]
[1753027712391,0.002,3779.6,3779.5,6.23795262]
[1753027712815,0.002,3779.6,3779.5,7.12634127]
[1753027713127,0.002,3779.6,3779.5,5.77785262]
[1753027713341,0.002,3779.6,3779.5,3.132]
[1753027713841,0.4746,3779.6,3778.8,3.0]
[1753027714006,3.12040739,3779.6,3779.0,0.132]
[1753027714206,0.4746,3779.6,3778.6,0.001]
[1753027714516,2.77799798,3779.3,3778.6,0.133]
[1753027714697,2.64620161,3779.1,3778.6,0.133]
[1753027714894,2.64640648,3778.8,3778.6,0.001]
[1753027715227,7.04041278,3778.7,3778.6,0.001]
[1753027715633,8.50821278,3778.7,3778.6,0.001]
[1753027715832,9.62366245,3778.7,3778.6,0.001]
[1753027716019,10.17366245,3778.7,3778.6,0.001]
[1753027716224,5.77966245,3778.7,3778.6,0.001]
[1753027716524,0.132,3778.7,3778.6,2.64748282]
[1753027716698,5.3892,3779.2,3778.6,0.001]
[1753027716896,4.394,3779.2,3778.6,0.133]
[1753027717122,4.394,3779.2,3778.9,0.132]
[1753027717317,0.132,3779.5,3779.2,2.64600701]
[1753027717532,0.002,3779.6,3779.4,0.132]
[1753027717841,0.002,3779.6,3779.5,2.64585262]
[1753027718799,0.002,3779.6,3779.4,0.132]
[1753027719000,0.002,3779.6,3779.5,2.64585262]
[1753027719228,0.002,3779.6,3779.4,2.77792156]
[1753027719636,0.002,3779.6,3779.4,0.132]
[1753027719938,0.002,3779.6,3779.4,2.7779134]
[1753027720120,0.002,3779.6,3779.4,0.132]
[1753027720320,0.002,3779.6,3779.3,2.64597923]
[1753027720529,0.002,3779.6,3779.5,2.64585262]
[1753027720837,0.002,3779.6,3779.4,2.64590499]
[1753027721140,0.002,3779.6,3779.1,3.0]
[1753027721303,0.002,3779.6,3779.5,2.64585262]
[1753027721504,0.002,3779.6,3779.3,2.77798185]
[1753027721709,0.002,3779.6,3779.3,0.132]
[1753027721930,0.4746,3779.6,3779.3,0.132]
[1753027722412,0.4746,3779.6,3778.9,3.0]
[1753027722413,0.4746,3779.6,3779.1,0.132]
[1753027722612,4.392,3779.5,3779.2,0.4601]
[1753027722851,4.392,3779.5,3778.6,1.4539]
[1753027723037,4.392,3779.5,3779.1,0.132]
[1753027723231,4.392,3779.5,3779.2,2.64606265]
[1753027723553,0.002,3779.6,3779.5,2.64585262]
[1753027723912,0.002,3779.6,3779.4,0.132]
[1753027724534,0.4746,3779.6,3779.4,0.132]
[1753027724740,0.002,3779.6,3779.4,0.132]
[1753027725819,4.392,3779.5,3779.4,0.132]
[1753027726015,4.392,3779.5,3779.1,3.0]
[1753027726353,4.392,3779.5,3779.1,2.7781224]
[1753027726649,0.002,3779.6,3779.1,0.97443902]
[1753027726826,4.391,3779.4,3779.3,2.64599264]
[1753027727029,0.002,3779.6,3779.3,0.132]
[1753027727235,4.393,3779.6,3779.3,0.132]
[1753027727453,4.393,3779.6,3779.5,2.64585262]
[1753027727819,4.393,3779.6,3779.4,2.6458992]
[1753027728037,4.393,3779.6,3779.3,0.132]
[1753027728240,4.393,3779.6,3779.4,2.64587837]
[1753027728431,1.5763,3779.5,3778.6,0.001]
[1753027728646,0.132,3779.4,3779.0,2.77815046]
[1753027728958,0.132,3779.4,3779.2,2.64600268]
[1753027729134,0.132,3779.4,3779.3,2.64599264]
[1753027729338,4.391,3779.5,3779.3,2.7779486]
[1753027729562,0.002,3779.6,3779.4,2.64592263]
[1753027729968,4.392,3779.6,3779.4,2.64592263]
[1753027730275,0.002,3779.6,3779.3,0.132]
[1753027731069,1.0594,3779.6,3778.8,3.0]
[1753027731255,4.39,3779.5,3779.0,0.132]
[1753027731576,0.55,3779.3,3778.6,3.001]
[1753027731735,0.55,3779.3,3778.7,0.132]
[1753027731936,2.64611429,3779.2,3778.7,0.132]
[1753027732142,1.51419705,3779.3,3778.7,0.132]
[1753027732349,0.4726,3779.1,3778.7,0.132]
[1753027732669,4.39,3779.0,3778.7,0.132]
[1753027734171,4.39,3779.1,3778.8,2.64634275]
[1753027734338,4.39,3779.1,3778.7,0.132]
[1753027734738,4.389,3779.2,3778.9,2.64621636]
[1753027734934,4.389,3779.2,3779.0,0.132]
[1753027735375,4.389,3779.2,3779.1,2.64613267]
[1753027735546,0.002,3779.5,3779.1,2.64613267]
[1753027735876,4.389,3779.4,3779.1,2.64613267]
[1753027736058,4.389,3779.4,3779.0,0.132]
[1753027736242,4.389,3779.4,3779.1,2.64613267]
[1753027736443,4.389,3779.4,3779.0,0.5921]
[1753027736677,4.389,3779.4,3779.2,2.64600481]
[1753027736847,0.002,3779.5,3779.3,2.6459439]
[1753027737046,0.002,3779.5,3779.3,2.77794774]
[1753027737267,0.002,3779.5,3779.3,0.5921]
[1753027737438,0.002,3779.5,3779.3,0.132]
[1753027737640,0.002,3779.5,3779.4,6.60952263]
[1753027737840,0.002,3779.5,3779.4,8.0273253]
[1753027738244,0.002,3779.5,3779.4,7.04502263]
[1753027738772,0.002,3779.5,3779.4,6.60952263]
[1753027738973,0.002,3779.5,3779.4,5.64592263]
[1753027740856,0.002,3779.5,3779.0,0.9636]
[1753027741176,0.002,3779.5,3778.8,3.0]
[1753027741480,0.55,3779.4,3778.6,1.0037]
[1753027741666,1.09085,3779.4,3778.6,1.0037]
[1753027741981,1.0021,3779.2,3778.6,0.001]
[1753027742152,0.55,3778.8,3778.6,0.001]
[1753027742562,1.0175,3778.7,3778.6,0.001]
[1753027742764,0.55,3778.7,3778.6,0.001]
[1753027743286,1.5111,3778.7,3778.6,0.001]
[1753027743445,4.936,3778.7,3778.6,0.001]
[1753027743646,5.4035,3778.7,3778.6,0.001]
[1753027743848,8.04991278,3778.7,3778.6,0.001]
[1753027744044,9.06201278,3778.7,3778.6,0.001]
[1753027744257,10.23284322,3778.7,3778.6,0.001]
[1753027746548,10.23284322,3778.7,3778.6,1e-08]
[1753027746781,13.23284322,3778.7,3778.6,1e-08]
[1753027750402,13.23184322,3778.7,3778.6,1e-08]
[1753027751380,8.84684322,3778.7,3778.6,1e-08]
[1753027751560,13.23084322,3778.7,3778.6,1e-08]
[1753027752179,4.19977318,3777.9,3777.8,1e-08]
[1753027752491,11.58477318,3777.9,3777.8,1e-08]
[1753027752714,11.58477318,3777.9,3776.2,0.132]
[1753027752715,1.0028,3777.6,3776.2,0.132]
[1753027752917,4.20033382,3777.1,3777.0,1e-08]
[1753027753094,11.58433382,3777.1,3777.0,1e-08]
[1753027753297,14.03974452,3777.1,3777.0,1e-08]
[1753027753493,14.03974452,3777.1,3774.6,0.4355]
[1753027753494,0.55,3776.3,3775.1,0.132]
[1753027753659,6.96927961,3777.1,3774.6,0.4355]
[1753027753660,0.132,3775.4,3774.6,1.383]
[1753027754002,4.384,3775.3,3774.8,0.132]
[1753027754191,2.6488034,3775.3,3774.8,0.132]
[1753027754506,4.384,3775.2,3774.8,0.132]
[1753027754960,2.78073421,3775.4,3774.8,0.5675]
[1753027755165,4.383,3775.3,3774.8,0.132]
[1753027755361,2.64900236,3775.1,3774.8,0.132]
[1753027755701,4.383,3775.0,3774.6,0.9475]
[1753027756373,4.384,3774.9,3774.7,0.4355]
[1753027756574,4.384,3774.8,3774.7,2.64916669]
[1753027756773,4.384,3774.8,3774.7,2.78121715]
[1753027756973,4.384,3774.8,3774.7,0.132]
[1753027757603,4.384,3774.8,3774.6,0.9475]
[1753027757802,4.384,3774.7,3774.6,1.383]
[1753027758014,2.64872666,3775.4,3774.7,0.4355]
[1753027758205,4.384,3775.3,3774.6,0.9475]
[1753027758410,2.64898814,3775.1,3774.7,0.132]
[1753027758610,2.64905071,3775.0,3774.7,0.132]
[1753027758766,0.55,3775.1,3774.7,0.132]
[1753027758965,3.19893689,3775.1,3774.7,0.132]
[1753027759201,0.55,3775.1,3774.7,0.132]
[1753027759717,4.384,3775.2,3774.7,0.132]
[1753027759718,0.55,3775.2,3774.7,0.132]
[1753027759926,4.383,3775.0,3774.7,0.132]
[1753027760229,2.78082059,3775.3,3774.7,0.132]
[1753027760230,4.383,3774.9,3774.8,0.4355]
[1753027760383,0.132,3775.3,3774.8,0.4355]
[1753027760589,2.64844864,3775.8,3774.9,3.4355]
[1753027760811,0.55,3775.6,3775.1,2.6488867]
[1753027760990,2.64835943,3776.0,3775.2,3.08432843]
[1753027761202,4.383,3775.7,3775.3,0.132]
[1753027761401,0.132,3775.9,3775.3,0.132]
[1753027761402,0.132,3775.9,3775.8,2.64844536]
[1753027761601,0.132,3776.3,3775.9,5.64833037]
[1753027761800,0.132,3776.3,3775.9,0.4355]
[1753027762001,2.78009676,3776.3,3775.7,3.0]
[1753027762203,2.64826345,3776.1,3775.6,1.0728]
[1753027762529,0.55,3776.0,3775.6,0.132]
[1753027762836,0.132,3775.8,3775.3,3.0]
[1753027762990,2.64811407,3776.3,3775.5,2.64860369]
[1753027763193,0.132,3776.4,3776.1,2.64821999]
[1753027763394,4.383,3776.5,3776.1,0.5675]
[1753027763705,4.383,3776.5,3776.2,0.4355]
[1753027763900,4.383,3776.5,3776.1,2.78017896]
[1753027763901,4.382,3776.6,3776.3,0.4355]
[1753027764117,4.382,3776.6,3776.1,2.78022389]
[1753027764319,2.64737353,3777.4,3776.7,1.0305]
[1753027764507,4.514,3777.3,3776.7,3.67826273]
[1753027764702,0.55,3777.2,3776.8,2.64773486]
[1753027764903,0.55,3777.2,3776.7,1.0305]
[1753027764904,1.492,3777.7,3776.7,1.0305]
[1753027765235,0.132,3777.5,3776.9,3.08316841]
[1753027765405,0.132,3777.5,3777.0,2.64759696]
[1753027765606,0.55,3777.4,3776.8,0.132]
[1753027765825,0.55,3777.4,3776.8,2.77972379]
[1753027766021,0.55,3777.4,3776.8,0.132]
[1753027766329,0.5995,3777.5,3776.4,3.0]
[1753027766330,3.19751175,3777.2,3776.4,3.0]
[1753027766505,4.382,3777.1,3776.6,2.77986458]
[1753027766703,4.382,3777.1,3776.7,2.64780666]
[1753027767024,4.382,3777.1,3776.7,2.64776776]
[1753027767224,7.49703958,3777.1,3776.6,0.132]
[1753027767429,4.8495,3777.1,3776.6,0.132]
[1753027767837,4.382,3777.1,3776.6,2.77988109]
[1753027767994,4.382,3777.1,3776.6,0.5653]
[1753027768194,4.381,3777.0,3776.6,0.132]
[1753027768400,0.55,3777.2,3776.7,0.4333]
[1753027768622,4.381,3777.1,3776.7,3.08111003]
[1753027768932,4.381,3777.1,3776.7,0.4333]
[1753027769305,0.55,3777.2,3776.7,3.08108976]
[1753027769494,4.38,3777.1,3776.7,2.64778976]
[1753027769694,4.38,3777.1,3776.6,2.7798672]
[1753027769994,4.38,3777.1,3776.6,2.77988206]
[1753027770421,4.38,3777.1,3776.8,2.64771186]
[1753027770895,4.38,3777.1,3776.6,2.77988164]
[1753027771095,5.15094002,3777.1,3776.6,0.132]
[1753027771331,5.61374002,3777.1,3776.6,0.132]
[1753027771513,2.64767603,3776.9,3776.6,0.132]
[1753027771714,0.9946,3776.9,3776.0,2.936]
[1753027771930,2.64780647,3776.8,3776.2,0.132]
[1753027772127,7.71529928,3776.7,3776.2,0.132]
[1753027772332,5.0674822,3776.7,3776.2,0.082]
[1753027772507,7.715311,3776.7,3776.2,0.082]
[1753027772709,7.71532216,3776.7,3776.2,0.082]
[1753027773039,7.71530815,3776.7,3776.2,0.082]
[1753027773326,8.17810815,3776.7,3776.2,0.082]
[1753027773630,2.64789807,3776.6,3776.2,0.082]
[1753027773830,2.64800992,3776.5,3775.8,4.0203]
[1753027773999,2.64803576,3776.4,3775.8,4.1523]
[1753027774332,4.378,3776.3,3775.8,4.1523]
[1753027774933,4.378,3776.3,3775.8,3.80072192]
[1753027775097,4.378,3776.3,3775.8,1.1523]
[1753027775303,0.451,3776.2,3775.8,0.132]
[1753027775559,2.64824425,3776.1,3775.8,0.132]
[1753027775744,3.56198391,3776.2,3775.8,0.132]
[1753027776212,0.55,3776.1,3775.8,0.132]
[1753027776419,3.79304566,3776.1,3775.5,0.132]
[1753027776724,3.77534248,3776.0,3775.5,0.132]
[1753027776925,4.927,3775.9,3775.0,1.4411]
[1753027777138,2.64850164,3775.8,3775.3,0.132]
[1753027777342,5.059,3775.9,3775.3,0.132]
[1753027777572,3.19914697,3774.8,3774.7,0.001]
[1753027777873,4.20114697,3774.8,3774.7,0.001]
[1753027778022,4.377,3774.8,3774.7,0.001]
[1753027778931,0.55,3775.1,3774.7,0.001]
[1753027779130,4.377,3775.0,3774.7,0.001]
[1753027779440,2.64868396,3775.5,3774.7,0.001]
[1753027779441,3.65014235,3775.6,3774.8,2.64914631]
[1753027779662,2.64874678,3775.4,3774.7,0.001]
[1753027779944,4.927,3775.3,3774.7,0.001]
[1753027780242,2.64914697,3774.8,3774.7,0.001]
[1753027780445,7.57514697,3774.8,3774.7,0.001]
[1753027780742,8.03794697,3774.8,3774.7,0.001]
[1753027780931,9.10664605,3774.8,3774.7,0.001]
[1753027781617,4.926,3774.8,3774.7,0.001]
[1753027782543,0.4628,3775.3,3774.7,0.001]
[1753027782756,4.926,3775.2,3774.7,0.001]
[1753027782943,7.57488286,3775.2,3774.7,0.001]
[1753027783144,3.19914697,3774.8,3774.7,0.001]
[1753027783349,5.55710086,3774.8,3774.7,0.001]
[1753027783523,2.64868376,3775.5,3774.7,0.001]
[1753027783524,3.09917272,3776.2,3774.7,0.001]
[1753027783849,2.64873758,3775.4,3774.7,0.4343]
[1753027784173,3.64985793,3776.0,3774.8,1.0119]
[1753027784318,1.0015,3776.0,3774.9,0.4333]
[1753027784523,4.375,3775.9,3775.4,2.6486571]
[1753027784750,4.375,3775.8,3775.4,0.4333]
[1753027784963,4.8125,3775.7,3774.8,1.0119]
[1753027785120,4.375,3775.6,3775.1,2.64888778]
[1753027785325,4.375,3775.6,3775.0,2.64896592]
[1753027785603,4.375,3775.5,3775.4,2.64871441]
[1753027785732,6.8158,3776.8,3775.6,2.64858565]
[1753027786059,6.8158,3776.8,3775.0,2.67544068]
[1753027786060,0.77797,3776.5,3776.4,2.64802457]
[1753027786234,4.375,3776.5,3775.8,0.9447]
[1753027786623,4.375,3776.5,3774.7,0.001]
[1753027786624,2.64809469,3776.3,3774.8,4.378]
[1753027786847,1.0128,3776.2,3774.9,2.64907679]
[1753027787048,3.19859481,3775.6,3774.9,2.64907679]
[1753027787254,3.19859481,3775.6,3774.8,4.378]
[1753027787255,2.64873377,3775.4,3774.8,3.9447]
[1753027787560,2.64874532,3775.4,3775.0,0.132]
[1753027787727,7.02366617,3775.5,3775.0,0.132]
[1753027787926,4.375,3775.5,3775.0,0.132]
[1753027788124,7.02367574,3775.5,3775.0,0.132]
[1753027788368,5.33316852,3775.6,3775.0,0.132]
[1753027788544,0.55,3775.4,3775.0,0.132]
[1753027788735,0.132,3775.0,3774.7,0.001]
[1753027788936,4.374,3774.9,3774.7,0.001]
[1753027789137,4.374,3774.8,3774.7,0.001]
[1753027789545,8.03594697,3774.8,3774.7,0.001]
[1753027789736,9.10444774,3774.8,3774.7,0.001]
[1753027790179,8.64164774,3774.8,3774.7,0.001]
[1753027790534,4.26764774,3774.8,3774.7,0.001]
[1753027790740,8.64164774,3774.8,3774.7,0.001]
[1753027791143,5.44250077,3774.8,3774.7,0.001]
[1753027791338,4.373,3774.8,3774.7,0.001]
[1753027791559,7.02214697,3774.8,3774.7,0.001]
[1753027791987,8.03494697,3774.8,3774.7,0.001]
[1753027792140,8.97514697,3774.8,3774.7,0.001]
[1753027792454,4.60214697,3774.8,3774.7,0.001]
[1753027792651,9.71346333,3774.8,3774.7,0.001]
[1753027796393,9.71246333,3774.8,3774.7,0.001]
[1753027797593,5.34046333,3774.8,3774.7,0.001]
[1753027797968,9.71246333,3774.8,3774.7,0.001]
[1753027799062,6.19921715,3774.7,3774.6,0.001]
[1753027799262,9.54838686,3774.7,3774.6,1e-08]